bitfinex/quotes_SOLUSD_20230104
["timestamp","ask_amount","ask_price","bid_price","bid_amount"]
[1672846376977,89.81347211,13.259,13.244,38.04893483]
[1672846377394,53.357242,13.257,13.244,38.04893483]
[1672846377603,56.63,13.256,13.244,38.04893483]
[1672846377815,67.19057211,13.256,13.244,38.04893483]
[1672846378144,22.6429,13.259,13.244,38.04893483]
[1672846378145,10.56057211,13.255,13.244,38.04893483]
[1672846378339,48.72185925,13.254,13.244,38.04893483]
[1672846378870,10.56057211,13.253,13.244,38.04893483]
[1672846380443,48.84248481,13.252,13.244,38.04893483]
[1672846380859,11.15876267,13.251,13.244,38.04893483]
[1672846381505,53.8301894,13.25,13.244,38.04893483]
[1672846381816,11.15876267,13.249,13.244,38.04893483]
[1672846382236,55.29608336,13.248,13.244,38.04893483]
[1672846382432,11.15876267,13.249,13.244,38.04893483]
[1672846382637,11.15876267,13.247,13.229,56.74]
[1672846383083,55.29608336,13.246,13.229,56.74]
[1672846383269,55.29608336,13.246,13.228,158.6462]
[1672846383270,55.29608336,13.244,13.228,56.75]
[1672846383480,55.29608336,13.242,13.221,56.78]
[1672846383696,55.29608336,13.24,13.221,56.78]
[1672846383899,56.69,13.242,13.233,6.8897238]
[1672846384106,11.15876267,13.241,13.233,6.8897238]
[1672846384331,56.7,13.24,13.233,6.8897238]
[1672846384743,11.15876267,13.239,13.233,6.8897238]
[1672846388955,11.15876267,13.239,13.233,6.8897238]
[1672846391687,56.7,13.238,13.233,6.8897238]
[1672846392028,11.15876267,13.237,13.233,6.8897238]
[1672846392232,56.71,13.236,13.233,6.8897238]
[1672846392641,11.15876267,13.235,13.233,6.8897238]
[1672846394853,56.72,13.234,13.227,68.59150902]
[1672846395380,11.15876267,13.233,13.227,68.59150902]
[1672846396425,56.73,13.232,13.219,60.5850286]
[1672846396852,11.15876267,13.231,13.219,60.5850286]
[1672846397068,56.74,13.23,13.219,60.5850286]
[1672846397488,11.08446245,13.229,13.219,60.5850286]
[1672846398237,56.75,13.228,13.219,60.5850286]
[1672846398543,73.07785926,13.227,13.219,60.5850286]
[1672846398946,11.08446245,13.226,13.219,60.5850286]
[1672846401171,11.08446245,13.226,13.22,56.78]
[1672846401357,22.6694,13.23,13.22,56.78]
[1672846401573,11.08446245,13.229,13.22,56.78]
[1672846403782,11.08446245,13.229,13.219,60.5850286]
[1672846404325,11.08446245,13.229,13.22,56.78]
[1672846404522,11.08446245,13.229,13.219,60.5850286]
[1672846407063,23.8654,13.237,13.22,56.78]
[1672846407265,11.08446245,13.232,13.22,176.3187]
[1672846408230,23.8654,13.237,13.22,401.0187]
[1672846408416,11.08446245,13.236,13.22,176.3187]
[1672846410413,36.04656245,13.236,13.22,176.3187]
[1672846410954,11.08446245,13.235,13.22,401.0187]
[1672846411888,224.7,13.262,13.22,401.0187]
[1672846412098,159.4232,13.248,13.22,449.1138]
[1672846412321,171.13175952,13.248,13.22,449.1138]
[1672846412528,11.70855952,13.247,13.22,449.1138]
[1672846412741,11.70855952,13.247,13.22,473.57]
[1672846418406,47.2228,13.246,13.22,473.57]
[1672846418827,11.70855952,13.245,13.22,473.57]
[1672846419454,56.64,13.254,13.22,473.57]
[1672846419455,263.7,13.277,13.22,473.57]
[1672846419676,206.6646,13.273,13.221,55.7449736]
[1672846419888,206.6646,13.273,13.227,224.7]
[1672846420079,206.6646,13.273,13.229,224.7]
[1672846420080,11.70855952,13.272,13.229,224.7]
[1672846420416,56.56,13.271,13.231,224.7]
[1672846420633,56.56,13.271,13.233,224.7]
[1672846420846,11.70855952,13.27,13.235,224.7]
[1672846421062,56.57,13.269,13.237,224.7]
[1672846421252,23.6151,13.269,13.239,224.7]
[1672846421462,35.44446125,13.268,13.24,281.4]
[1672846421672,24.3609,13.268,13.242,224.7]
[1672846421885,24.3609,13.268,13.244,224.7]
[1672846422090,24.3609,13.268,13.245,176.0229]
[1672846422299,35.44446125,13.268,13.245,176.0229]
[1672846423154,35.44446125,13.268,13.245,400.7229]
[1672846423352,24.3609,13.268,13.245,400.7229]
[1672846424616,281.17,13.293,13.245,400.7229]
[1672846424824,215.95497,13.292,13.247,224.7]
[1672846425057,215.95497,13.292,13.249,224.7]
[1672846425058,56.48,13.291,13.249,224.7]
[1672846425248,67.56356125,13.291,13.251,224.7]
[1672846425577,11.08356125,13.29,13.252,389.6479]
[1672846425763,56.49,13.289,13.252,389.6479]
[1672846425979,22.5088,13.288,13.253,295.7293]
[1672846426206,56.5,13.287,13.254,281.34]
[1672846426410,67.58356125,13.287,13.254,281.34]
[1672846426628,57.03136125,13.286,13.254,281.34]
[1672846426828,56.5,13.285,13.254,281.34]
[1672846427044,139.5119,13.284,13.254,56.64]
[1672846427253,150.59546125,13.284,13.254,56.64]
[1672846427465,150.59546125,13.284,13.254,281.34]
[1672846427678,11.08356125,13.283,13.254,281.34]
[1672846427888,23.6761,13.284,13.254,281.34]
[1672846428300,23.6761,13.284,13.254,56.64]
[1672846428301,115.8358,13.283,13.254,56.64]
[1672846428518,126.91936125,13.283,13.254,56.64]
[1672846428829,11.08356125,13.282,13.254,56.64]
[1672846429358,11.08356125,13.282,13.254,281.34]
[1672846429560,22.7174,13.281,13.254,281.34]
[1672846429995,11.08356125,13.28,13.254,56.64]
[1672846430184,58.14136125,13.28,13.254,56.64]
[1672846430395,330.99389,13.3,13.255,224.7]
[1672846430614,330.99389,13.3,13.253,71.0293]
[1672846430615,188.1253,13.291,13.257,224.7]
[1672846430826,199.20886125,13.291,13.259,224.7]
[1672846431038,255.68886125,13.291,13.261,224.7]
[1672846431247,11.08356125,13.29,13.262,79.8211]
[1672846431474,11.08356125,13.29,13.262,304.5211]
[1672846431880,11.08356125,13.29,13.263,24.9895]
[1672846432085,11.08356125,13.29,13.264,56.59]
[1672846433362,188.1253,13.291,13.264,281.29]
[1672846434201,11.08356125,13.29,13.264,281.29]
[1672846436081,11.08356125,13.29,13.264,56.59]
[1672846438506,56.49,13.289,13.264,56.59]
[1672846438712,56.49,13.289,13.263,81.5895]
[1672846439045,11.08356125,13.288,13.263,81.5895]
[1672846439264,56.5,13.287,13.263,56.6]
[1672846439464,80.4523,13.287,13.261,56.61]
[1672846439664,22.631,13.286,13.261,56.61]
[1672846439872,56.5,13.285,13.261,56.61]
[1672846440080,67.58356125,13.285,13.261,56.61]
[1672846440290,153.99656125,13.284,13.261,56.61]
[1672846440608,224.7,13.282,13.26,140.0344]
[1672846440819,101.6639,13.281,13.249,170.3528]
[1672846441039,362.16436125,13.281,13.249,170.3528]
[1672846441357,11.08356125,13.28,13.249,170.3528]
[1672846441549,56.53,13.279,13.249,170.3528]
[1672846441760,23.2314,13.278,13.249,170.3528]
[1672846441968,56.54,13.277,13.249,170.3528]
[1672846442170,224.7,13.275,13.249,170.3528]
[1672846442385,224.7,13.273,13.249,56.66]
[1672846442597,102.3043,13.272,13.232,56.73]
[1672846442916,102.3043,13.272,13.233,224.7]
[1672846442917,48.0487,13.271,13.233,224.7]
[1672846443140,281.27,13.27,13.235,224.7]
[1672846443355,292.35356125,13.27,13.236,56.71]
[1672846443558,11.08356125,13.269,13.232,56.73]
[1672846443776,56.58,13.268,13.232,56.73]
[1672846444197,11.08356125,13.267,13.232,56.73]
[1672846444411,56.59,13.266,13.232,281.43]
[1672846444615,48.5206,13.265,13.232,281.43]
[1672846444940,56.59,13.264,13.232,281.43]
[1672846445139,11.08356125,13.264,13.232,281.43]
[1672846445348,48.5206,13.265,13.232,295.38219]
[1672846445557,11.08356125,13.264,13.232,295.38219]
[1672846447045,11.08356125,13.264,13.233,13.95113]
[1672846447255,0.00356125,13.264,13.235,224.7]
[1672846447451,48.5206,13.265,13.237,224.7]
[1672846447661,48.5206,13.265,13.236,70.65797]
[1672846447662,48.5206,13.265,13.239,224.7]
[1672846447883,45.93076002,13.29,13.241,224.7]
[1672846447884,56.49,13.289,13.241,224.7]
[1672846448098,10.49126681,13.267,13.243,224.7]
[1672846448304,10.49126681,13.267,13.245,224.7]
[1672846448517,10.49126681,13.267,13.247,224.7]
[1672846448725,10.49126681,13.267,13.249,224.7]
[1672846448940,79.8731,13.284,13.251,224.7]
[1672846449135,23.9744,13.283,13.253,224.7]
[1672846449347,56.52,13.282,13.254,56.64]
[1672846449558,67.01126681,13.282,13.254,56.64]
[1672846449766,10.49126681,13.281,13.254,281.34]
[1672846449981,33.98046681,13.281,13.254,56.64]
[1672846450198,33.98046681,13.281,13.253,56.64]
[1672846450407,10.49126681,13.28,13.253,56.64]
[1672846451243,56.53,13.279,13.244,56.68]
[1672846451657,10.49126681,13.278,13.244,56.68]
[1672846451865,56.54,13.277,13.244,56.68]
[1672846452081,149.8,13.277,13.244,56.68]
[1672846452296,10.49126681,13.276,13.245,224.7]
[1672846452510,56.55,13.275,13.246,56.67]
[1672846452714,56.55,13.275,13.245,281.38]
[1672846452921,10.49126681,13.274,13.245,281.38]
[1672846453143,56.56,13.273,13.245,281.38]
[1672846453567,56.85696681,13.272,13.245,281.38]
[1672846453887,10.49126681,13.271,13.245,281.38]
[1672846454606,33.76576681,13.271,13.245,56.68]
[1672846454810,90.32576681,13.271,13.244,56.68]
[1672846455030,10.49126681,13.27,13.244,56.68]
[1672846455763,10.49126681,13.27,13.244,281.38]
[1672846456398,10.49126681,13.27,13.244,56.68]
[1672846456609,56.57,13.269,13.244,56.68]
[1672846457038,10.49126681,13.268,13.244,56.68]
[1672846457449,56.58,13.267,13.244,56.68]
[1672846457662,56.58,13.267,13.227,224.7]
[1672846457872,84.03476681,13.266,13.229,224.7]
[1672846458084,56.59,13.265,13.231,224.7]
[1672846458292,91.53216681,13.265,13.233,224.7]
[1672846458500,130.18356681,13.264,13.235,224.7]
[1672846458706,130.18356681,13.264,13.237,224.7]
[1672846458931,10.49126681,13.263,13.238,56.7]
[1672846459334,10.49126681,13.263,13.227,56.75]
[1672846459565,24.4143,13.262,13.227,56.75]
[1672846459876,281.31,13.261,13.227,56.75]
[1672846460091,90.30316681,13.261,13.227,56.75]
[1672846460313,10.49126681,13.26,13.227,56.75]
[1672846460498,80.293,13.259,13.227,56.75]
[1672846460920,10.49126681,13.258,13.227,56.75]
[1672846461128,56.62,13.257,13.227,56.75]
[1672846461345,46.5295,13.256,13.227,56.75]
[1672846461549,56.63,13.255,13.227,56.75]
[1672846461776,139.0603,13.254,13.227,56.75]
[1672846461968,56.64,13.253,13.227,56.75]
[1672846462291,90.38696681,13.253,13.227,56.75]
[1672846462516,10.49126681,13.252,13.227,56.75]
[1672846465228,10.49126681,13.252,13.227,281.45]
[1672846466921,10.49126681,13.252,13.227,56.75]
[1672846467557,10.49126681,13.252,13.227,281.45]
[1672846476818,23.0185,13.251,13.227,281.45]
[1672846477538,10.49126681,13.25,13.227,281.45]
[1672846478175,23.0185,13.251,13.227,281.45]
[1672846480904,76.92043792,13.265,13.227,281.45]
[1672846481122,181.307,13.264,13.229,224.7]
[1672846481316,191.79826681,13.264,13.231,224.7]
[1672846481526,10.49126681,13.263,13.233,224.7]
[1672846481738,10.49126681,13.263,13.235,224.7]
[1672846481947,10.49126681,13.263,13.237,224.7]
[1672846482157,10.49126681,13.263,13.239,224.7]
[1672846482367,10.49126681,13.263,13.241,224.7]
[1672846482593,10.49126681,13.263,13.243,224.7]
[1672846482802,10.49126681,13.263,13.245,224.7]
[1672846483116,10.49126681,13.263,13.246,56.67]
[1672846483334,10.49126681,13.263,13.244,224.7]
[1672846483544,10.49126681,13.263,13.245,281.37]
[1672846485748,181.307,13.264,13.245,281.37]
[1672846489633,10.49126681,13.263,13.245,281.37]
[1672846490055,181.307,13.264,13.245,281.37]
[1672846490452,191.79826681,13.264,13.245,281.37]
[1672846490896,181.307,13.264,13.245,281.37]
[1672846491733,191.79826681,13.264,13.245,281.37]
[1672846492768,181.307,13.264,13.245,281.37]
[1672846494152,191.79826681,13.264,13.245,281.37]
[1672846494994,181.307,13.264,13.245,281.37]
[1672846495939,56.56,13.273,13.245,281.37]
[1672846496148,165.245,13.272,13.245,281.37]
[1672846496343,10.49126681,13.271,13.247,224.7]
[1672846496553,10.49126681,13.271,13.249,224.7]
[1672846496785,10.49126681,13.271,13.237,24.6264]
[1672846496786,10.49126681,13.271,13.251,224.7]
[1672846496988,10.49126681,13.271,13.253,224.7]
[1672846497612,10.49126681,13.271,13.251,224.7]
[1672846497827,10.49126681,13.271,13.252,56.64]
[1672846498163,10.49126681,13.271,13.252,281.34]
[1672846502772,165.245,13.272,13.252,281.34]
[1672846504653,76.92043792,13.279,13.252,281.34]
[1672846504854,76.92043792,13.279,13.254,224.7]
[1672846505082,76.92043792,13.279,13.256,224.7]
[1672846505083,10.49126681,13.278,13.256,224.7]
[1672846505403,10.49126681,13.278,13.258,224.7]
[1672846505598,10.49126681,13.278,13.26,224.7]
[1672846505815,10.49126681,13.278,13.262,224.7]
[1672846506022,10.49126681,13.278,13.264,224.7]
[1672846506235,10.49126681,13.278,13.266,224.7]
[1672846506444,76.92043792,13.279,13.266,224.7]
[1672846506974,76.92043792,13.279,13.268,224.7]
[1672846507190,76.92043792,13.279,13.269,56.57]
[1672846508117,76.92043792,13.279,13.257,224.7]
[1672846508320,76.92043792,13.279,13.259,224.7]
[1672846508534,76.92043792,13.279,13.261,224.7]
[1672846508739,76.92043792,13.279,13.263,224.7]
[1672846508955,76.92043792,13.279,13.265,224.7]
[1672846509174,76.92043792,13.279,13.267,224.7]
[1672846509379,76.92043792,13.279,13.269,224.7]
[1672846509799,76.92043792,13.279,13.271,224.7]
[1672846510007,76.92043792,13.28,13.272,281.26]
[1672846510214,76.92043792,13.281,13.272,224.7]
[1672846510423,76.92043792,13.281,13.255,98.4111836]
[1672846510424,76.92043792,13.28,13.256,224.7]
[1672846510659,76.92043792,13.28,13.258,224.7]
[1672846510967,129.83826681,13.279,13.26,224.7]
[1672846511181,129.83826681,13.279,13.262,224.7]
[1672846511372,10.49126681,13.278,13.264,224.7]
[1672846511809,10.49126681,13.278,13.266,224.7]
[1672846512737,10.49126681,13.278,13.263,224.7]
[1672846512949,10.49126681,13.278,13.265,224.7]
[1672846513893,119.347,13.279,13.263,224.7]
[1672846514103,119.347,13.279,13.265,224.7]
[1672846514645,119.347,13.279,13.267,224.7]
[1672846515052,10.49126681,13.278,13.267,224.7]
[1672846515490,10.49126681,13.278,13.263,224.7]
[1672846515692,119.347,13.279,13.265,224.7]
[1672846515905,10.49126681,13.278,13.267,224.7]
[1672846516306,10.49126681,13.278,13.269,224.7]
[1672846517268,10.49126681,13.278,13.263,224.7]
[1672846517485,10.49126681,13.278,13.265,224.7]
[1672846517673,10.49126681,13.278,13.267,224.7]
[1672846518449,119.347,13.279,13.269,224.7]
[1672846518636,11.70088772,13.28,13.269,224.7]
[1672846519693,11.70088772,13.28,13.263,224.7]
[1672846519905,11.70088772,13.28,13.261,113.7332]
[1672846519906,110.0144,13.279,13.265,224.7]
[1672846520104,11.70088772,13.28,13.267,224.7]
[1672846520316,203.4428,13.299,13.269,224.7]
[1672846520526,56.45,13.298,13.271,224.7]
[1672846520752,92.5751768,13.298,13.273,224.7]
[1672846521271,12.9107768,13.297,13.273,224.7]
[1672846521486,56.46,13.296,13.273,224.7]
[1672846521694,22.9741,13.295,13.275,224.7]
[1672846521907,56.47,13.294,13.275,224.7]
[1672846522116,22.8676,13.293,13.275,224.7]
[1672846522324,22.8676,13.293,13.272,224.7]
[1672846522542,142.4967,13.292,13.273,281.26]
[1672846522851,155.4074768,13.292,13.273,224.7]
[1672846523045,12.9107768,13.291,13.275,224.7]
[1672846523258,35.7826768,13.291,13.275,224.7]
[1672846523811,12.9107768,13.29,13.275,224.7]
[1672846523997,12.9107768,13.29,13.27,111.4703]
[1672846523998,12.9107768,13.29,13.277,224.7]
[1672846524203,12.9107768,13.29,13.279,224.7]
[1672846524834,12.9107768,13.29,13.272,224.7]
[1672846525043,12.9107768,13.29,13.274,224.7]
[1672846525474,12.9107768,13.29,13.276,224.7]
[1672846526214,12.9107768,13.29,13.271,56.56]
[1672846526538,12.9107768,13.29,13.272,224.7]
[1672846527143,12.9107768,13.29,13.271,56.56]
[1672846527361,69.3907768,13.29,13.264,224.7]
[1672846527579,69.3907768,13.29,13.262,72.0954]
[1672846527580,69.3907768,13.29,13.266,224.7]
[1672846527793,12.55048319,13.289,13.266,224.7]
[1672846527991,12.55048319,13.289,13.268,224.7]
[1672846528202,24.1393,13.288,13.268,224.7]
[1672846528421,80.6293,13.288,13.268,224.7]
[1672846528628,12.55048319,13.287,13.268,224.7]
[1672846528951,35.91118319,13.287,13.264,224.7]
[1672846529148,24.5486,13.286,13.266,224.7]
[1672846529366,37.09908319,13.286,13.266,224.7]
[1672846529564,12.55048319,13.285,13.266,224.7]
[1672846529775,111.2584,13.284,13.267,56.58]
[1672846530215,12.55048319,13.283,13.267,56.58]
[1672846530404,12.55048319,13.283,13.265,281.29]
[1672846530616,48.1849,13.282,13.265,281.29]
[1672846531041,12.55048319,13.281,13.265,281.29]
[1672846532842,12.55048319,13.281,13.265,224.7]
[1672846533468,12.55048319,13.281,13.267,224.7]
[1672846535660,12.55048319,13.281,13.264,281.29]
[1672846536710,12.55048319,13.281,13.264,56.59]
[1672846536927,56.53,13.28,13.256,224.7]
[1672846537244,12.55048319,13.279,13.257,281.32]
[1672846537878,12.55048319,13.279,13.257,56.62]
[1672846538071,23.8106,13.278,13.255,224.7]
[1672846538281,23.8106,13.278,13.256,56.63]
[1672846538488,12.55048319,13.277,13.256,56.63]
[1672846539029,134.5146,13.276,13.256,56.63]
[1672846539337,12.55048319,13.275,13.256,56.63]
[1672846539550,12.55048319,13.275,13.255,224.7]
[1672846539761,22.7262,13.274,13.256,56.63]
[1672846540302,12.55048319,13.273,13.256,56.63]
[1672846540707,12.55048319,13.273,13.254,56.64]
[1672846540911,36.87688319,13.273,13.254,56.64]
[1672846541349,12.55048319,13.272,13.254,56.64]
[1672846541668,11.55048319,13.272,13.254,56.64]
[1672846541886,12.55048319,13.271,13.254,56.64]
[1672846542189,24.3264,13.273,13.254,56.64]
[1672846542386,12.55048319,13.272,13.254,281.34]
[1672846543009,23.925,13.271,13.254,281.34]
[1672846544913,111.7168,13.276,13.254,281.34]
[1672846545232,111.7168,13.276,13.254,303.1211836]
[1672846546377,111.7168,13.276,13.255,13.92798]
[1672846546591,111.7168,13.276,13.257,224.7]
[1672846546808,111.7168,13.276,13.259,224.7]
[1672846547113,111.7168,13.276,13.261,224.7]
[1672846547324,111.7168,13.276,13.263,224.7]
[1672846547529,111.7168,13.276,13.255,13.92798]
[1672846547530,111.7168,13.276,13.265,224.7]
[1672846547744,111.7168,13.276,13.267,224.7]
[1672846547969,71.3081,13.287,13.269,224.7]
[1672846548277,154.59895078,13.286,13.269,224.7]
[1672846548495,154.59895078,13.286,13.271,224.7]
[1672846548692,12.13975078,13.285,13.271,224.7]
[1672846549121,12.13975078,13.285,13.273,224.7]
[1672846549316,119.7681,13.286,13.275,224.7]
[1672846549643,71.3081,13.287,13.277,224.7]
[1672846549644,12.13975078,13.285,13.277,224.7]
[1672846549853,71.3081,13.287,13.277,224.7]
[1672846550466,71.3081,13.287,13.259,224.7]
[1672846550677,71.3081,13.287,13.261,224.7]
[1672846550907,12.13975078,13.286,13.263,224.7]
[1672846551119,12.13975078,13.286,13.265,224.7]
[1672846551431,12.13975078,13.286,13.267,224.7]
[1672846551640,12.13975078,13.286,13.269,224.7]
[1672846551836,71.3081,13.287,13.271,224.7]
[1672846552046,71.3081,13.287,13.273,224.7]
[1672846552261,71.3081,13.287,13.275,224.7]
[1672846552462,71.3081,13.287,13.277,224.7]
[1672846553527,71.3081,13.287,13.278,224.7]
[1672846554150,71.3081,13.287,13.28,224.7]
[1672846554370,56.41,13.307,13.28,224.7]
[1672846554579,178.8697,13.306,13.28,224.7]
[1672846554791,56.42,13.305,13.28,224.7]
[1672846555105,12.13975078,13.305,13.282,224.7]
[1672846555309,12.13975078,13.305,13.284,224.7]
[1672846555310,12.13975078,13.304,13.284,224.7]
[1672846556381,178.8697,13.306,13.285,281.2]
[1672846556984,12.13975078,13.305,13.285,281.2]
[1672846558035,178.8697,13.306,13.285,281.2]
[1672846558245,178.8697,13.306,13.272,224.7]
[1672846558463,178.8697,13.306,13.274,224.7]
[1672846558671,178.8697,13.306,13.273,70.45909]
[1672846558672,12.13975078,13.305,13.276,224.7]
[1672846558876,56.42,13.304,13.278,224.7]
[1672846559296,12.13975078,13.303,13.278,224.7]
[1672846559520,23.2293,13.302,13.279,56.53]
[1672846559721,23.2293,13.302,13.28,224.7]
[1672846559934,23.2293,13.302,13.282,224.7]
[1672846560253,24.1291,13.301,13.282,224.7]
[1672846560888,24.1291,13.301,13.272,224.7]
[1672846561093,23.6609,13.3,13.274,224.7]
[1672846561320,23.6609,13.3,13.276,224.7]
[1672846561517,117.3191,13.299,13.278,224.7]
[1672846561733,117.3191,13.299,13.28,224.7]
[1672846561933,117.3191,13.299,13.282,224.7]
[1672846562148,117.3191,13.299,13.284,224.7]
[1672846562368,24.2324,13.298,13.286,224.7]
[1672846563516,24.2324,13.298,13.281,224.7]
[1672846563841,24.2324,13.298,13.283,224.7]
[1672846564036,12.13975078,13.297,13.283,224.7]
[1672846564362,24.2324,13.298,13.283,224.7]
[1672846564576,24.2324,13.298,13.285,224.7]
[1672846565419,12.13975078,13.297,13.285,224.7]
[1672846565627,12.13975078,13.297,13.281,224.7]
[1672846565840,12.13975078,13.297,13.283,224.7]
[1672846566038,12.13975078,13.297,13.285,224.7]
[1672846566250,24.2324,13.298,13.285,224.7]
[1672846566782,12.13975078,13.297,13.285,224.7]
[1672846567101,12.13975078,13.297,13.281,224.7]
[1672846567315,24.2324,13.298,13.283,224.7]
[1672846567624,36.37215078,13.298,13.285,224.7]
[1672846568449,36.37215078,13.298,13.281,224.7]
[1672846568670,36.37215078,13.298,13.283,224.7]
[1672846568971,36.37215078,13.298,13.285,224.7]
[1672846569825,36.37215078,13.298,13.281,224.7]
[1672846570038,36.37215078,13.298,13.283,224.7]
[1672846570250,36.37215078,13.298,13.285,224.7]
[1672846571303,24.2324,13.298,13.281,224.7]
[1672846571619,24.2324,13.298,13.283,224.7]
[1672846571831,24.2324,13.298,13.285,224.7]
[1672846572880,24.2324,13.298,13.283,224.7]
[1672846573087,24.2324,13.298,13.282,56.52]
[1672846573088,24.2324,13.298,13.285,224.7]
[1672846573615,24.2324,13.298,13.287,224.7]
[1672846574561,24.2324,13.298,13.283,224.7]
[1672846574757,36.37215078,13.298,13.285,224.7]
[1672846575730,36.37215078,13.298,13.281,238.60071]
[1672846576038,36.37215078,13.298,13.281,224.7]
[1672846576245,36.37215078,13.298,13.283,224.7]
[1672846577308,36.37215078,13.298,13.281,224.7]
[1672846577494,36.37215078,13.298,13.283,224.7]
[1672846577704,36.37215078,13.298,13.285,224.7]
[1672846578566,24.2324,13.298,13.285,224.7]
[1672846578772,24.2324,13.298,13.281,224.7]
[1672846578961,24.2324,13.298,13.283,224.7]
[1672846579171,24.2324,13.298,13.285,224.7]
[1672846579822,12.13975078,13.297,13.285,224.7]
[1672846580006,12.13975078,13.297,13.281,224.7]
[1672846580224,22.6143,13.296,13.271,224.7]
[1672846580552,22.6143,13.296,13.273,224.7]
[1672846580553,12.13975078,13.295,13.273,224.7]
[1672846580741,35.02505078,13.295,13.275,224.7]
[1672846580952,56.47,13.294,13.275,224.7]
[1672846581293,12.13975078,13.294,13.275,224.7]
[1672846581502,12.13975078,13.293,13.275,224.7]
[1672846581693,12.13975078,13.293,13.262,224.7]
[1672846581921,138.0711,13.292,13.264,224.7]
[1672846582234,12.13975078,13.291,13.266,224.7]
[1672846582452,36.08305078,13.291,13.268,224.7]
[1672846582760,23.9433,13.291,13.27,224.7]
[1672846583076,12.13975078,13.29,13.272,224.7]
[1672846583284,12.13975078,13.29,13.274,224.7]
[1672846583491,12.13975078,13.29,13.276,224.7]
[1672846583686,23.2947,13.289,13.276,224.7]
[1672846584119,12.13975078,13.288,13.276,224.7]
[1672846584644,12.13975078,13.288,13.273,224.7]
[1672846584853,23.2947,13.289,13.275,224.7]
[1672846585068,23.2947,13.289,13.277,224.7]
[1672846585278,23.2947,13.289,13.279,224.7]
[1672846586331,56.41,13.308,13.273,224.7]
[1672846586645,158.846,13.298,13.275,224.7]
[1672846586841,158.846,13.298,13.277,224.7]
[1672846587051,158.846,13.298,13.279,224.7]
[1672846587272,12.06517248,13.297,13.281,224.7]
[1672846587477,158.846,13.298,13.283,224.7]
[1672846587694,158.846,13.298,13.285,224.7]
[1672846587893,158.846,13.298,13.287,224.7]
[1672846588108,177.493,13.315,13.289,224.7]
[1672846588325,177.493,13.315,13.283,13.89862]
[1672846588326,177.493,13.315,13.291,224.7]
[1672846588527,177.493,13.315,13.29,176.1537]
[1672846588528,189.55817248,13.315,13.293,224.7]
[1672846588737,189.55817248,13.315,13.292,56.47]
[1672846588738,12.06517248,13.314,13.295,224.7]
[1672846588950,12.06517248,13.314,13.297,224.7]
[1672846589911,12.06517248,13.314,13.292,224.7]
[1672846590127,12.06517248,13.314,13.294,224.7]
[1672846590958,56.39,13.313,13.284,56.51]
[1672846591280,56.39,13.313,13.283,224.7]
[1672846591593,12.06517248,13.312,13.285,224.7]
[1672846591902,56.39,13.311,13.287,224.7]
[1672846592224,12.06517248,13.31,13.287,224.7]
[1672846592410,47.7173,13.309,13.287,224.7]
[1672846592832,12.06517248,13.308,13.289,224.7]
[1672846593150,130.94657248,13.308,13.289,224.7]
[1672846593598,36.63117248,13.307,13.291,224.7]